bitfinex/quotes_BTCUSD_20240717
["timestamp","ask_amount","ask_price","bid_price","bid_amount"]
[1721207298757,0.00836,65306.0,65305.0,2.53510321]
[1721207299156,0.00836,65306.0,65305.0,2.40794057]
[1721207299860,0.00836,65306.0,65305.0,2.42194057]
[1721207300359,0.00084,65307.0,65306.0,1.7056735]
[1721207300703,1e-08,65310.0,65309.0,1.321826]
[1721207300887,1e-08,65310.0,65309.0,1.93299224]
[1721207301086,1e-08,65310.0,65309.0,1.94442719]
[1721207301312,1e-08,65310.0,65309.0,1.56519119]
[1721207301485,1e-08,65310.0,65309.0,1.32620774]
[1721207301862,1e-08,65310.0,65309.0,1.34020774]
[1721207303013,1e-08,65310.0,65309.0,1.36320774]
[1721207303215,1e-08,65310.0,65309.0,1.71944374]
[1721207303996,1e-08,65310.0,65309.0,1.73344374]
[1721207304237,1e-08,65310.0,65309.0,1.88024374]
[1721207305004,1e-08,65310.0,65309.0,1.86624374]
[1721207305200,1e-08,65310.0,65309.0,1.85224374]
[1721207305403,1e-08,65310.0,65309.0,1.88024374]
[1721207305720,1e-08,65310.0,65309.0,1.86624374]
[1721207305943,1e-08,65310.0,65309.0,1.89378168]
[1721207306277,1e-08,65310.0,65309.0,1.90778168]
[1721207307426,1e-08,65310.0,65309.0,1.92178168]
[1721207308012,1e-08,65310.0,65309.0,1.90778168]
[1721207308278,0.00836,65316.0,65309.0,1.90778168]
[1721207308279,0.00836,65316.0,65315.0,1.071728]
[1721207308485,0.00836,65316.0,65315.0,1.34910974]
[1721207308620,0.00836,65316.0,65315.0,1.39064768]
[1721207308621,0.15726,65316.0,65315.0,1.39064768]
[1721207309005,0.0803,65310.0,65309.0,0.028]
[1721207309212,0.0803,65310.0,65309.0,0.181118]
[1721207309366,0.08291909,65310.0,65309.0,0.77959]
[1721207309575,0.0803,65310.0,65309.0,0.76559]
[1721207309741,0.08114,65310.0,65309.0,0.76559]
[1721207309941,0.08375613,65310.0,65309.0,0.459354]
[1721207310148,0.08114,65310.0,65309.0,0.459354]
[1721207310753,0.08114,65310.0,65309.0,0.153118]
[1721207310974,0.08114,65310.0,65309.0,0.459354]
[1721207311581,0.08114,65310.0,65309.0,0.473354]
[1721207311826,0.08114,65310.0,65309.0,0.487354]
[1721207311960,0.08114,65310.0,65309.0,0.510354]
[1721207312154,0.08114,65310.0,65309.0,0.81659]
[1721207312360,0.08114,65310.0,65309.0,0.97097174]
[1721207312561,0.08114,65310.0,65309.0,0.510354]
[1721207312846,0.08114,65310.0,65309.0,0.81659]
[1721207314211,0.08114,65310.0,65309.0,0.510354]
[1721207314414,0.08114,65310.0,65309.0,0.051]
[1721207314620,0.08114,65310.0,65309.0,0.028]
[1721207314621,0.60779809,65310.0,65309.0,0.028]
[1721207314814,0.91402909,65310.0,65309.0,0.028]
[1721207315433,0.60779809,65310.0,65309.0,0.028]
[1721207315588,0.60779809,65310.0,65309.0,0.014]
[1721207315792,0.1411,65307.0,65301.0,0.306269]
[1721207316007,0.0790115,65306.0,65302.0,0.176133]
[1721207316853,0.0764,65304.0,65302.0,0.023]
[1721207317029,0.0764,65304.0,65300.0,0.329276]
[1721207317229,0.00260222,65303.0,65302.0,0.005]
[1721207317434,0.00260222,65303.0,65302.0,0.186134]
[1721207318056,0.00260222,65303.0,65302.0,0.181134]
[1721207318574,0.00260222,65303.0,65302.0,0.176134]
[1721207318936,0.00260222,65303.0,65302.0,0.185134]
[1721207319138,0.00260222,65303.0,65302.0,0.491403]
[1721207319495,0.00260222,65303.0,65302.0,1.103941]
[1721207319632,0.00260222,65303.0,65302.0,1.111941]
[1721207319839,0.0764,65304.0,65303.0,0.76566]
[1721207320059,0.00084,65310.0,65309.0,0.153118]
[1721207320283,0.00084,65310.0,65309.0,0.482354]
[1721207320434,0.00379882,65310.0,65309.0,0.78859]
[1721207320635,0.00084,65310.0,65309.0,0.78859]
[1721207320925,0.00084,65310.0,65309.0,1.24920774]
[1721207321721,0.00084,65310.0,65309.0,0.482354]
[1721207321923,0.00084,65310.0,65309.0,0.023]
[1721207322061,0.0785,65309.0,65308.0,0.153118]
[1721207322277,0.0785,65309.0,65308.0,0.023]
[1721207322504,0.08112293,65309.0,65308.0,0.023]
[1721207322697,0.08112293,65309.0,65307.0,0.153122]
[1721207322910,0.08112293,65309.0,65308.0,0.023]
[1721207323154,0.08112293,65309.0,65297.0,0.306291]
[1721207323155,0.306251,65306.0,65297.0,0.306291]
[1721207323353,0.306251,65306.0,65293.0,0.000924]
[1721207323354,0.299253,65294.0,65293.0,0.000924]
[1721207323735,0.60811922,65294.0,65293.0,0.000924]
[1721207323957,0.91442522,65294.0,65293.0,0.000924]
[1721207324158,1.22073122,65294.0,65293.0,0.000924]
[1721207324354,0.91442522,65294.0,65293.0,0.000924]
[1721207325605,0.91442522,65294.0,65293.0,0.003924]
[1721207325806,0.14866022,65294.0,65293.0,0.005924]
[1721207326103,0.91442522,65294.0,65293.0,0.005924]
[1721207326530,1.49744478,65294.0,65293.0,0.005924]
[1721207327230,1.37511296,65294.0,65293.0,0.005924]
[1721207327969,1.37511296,65294.0,65293.0,0.002924]
[1721207328214,1.06880696,65294.0,65293.0,0.002924]
[1721207328416,0.14966022,65294.0,65293.0,0.025924]
[1721207328822,0.14866022,65294.0,65293.0,0.025924]
[1721207329022,0.14866022,65294.0,65293.0,0.023924]
[1721207329228,0.15166022,65294.0,65293.0,0.000924]
[1721207329792,0.14866022,65294.0,65293.0,0.005924]
[1721207330006,0.14866022,65294.0,65293.0,0.033924]
[1721207331572,0.14866022,65294.0,65293.0,0.187079]
[1721207332192,0.14866022,65294.0,65293.0,0.49339]
[1721207332504,0.14866022,65294.0,65293.0,0.187079]
[1721207332934,0.14866022,65294.0,65293.0,0.49339]
[1721207333137,0.08206022,65294.0,65293.0,0.49339]
[1721207333447,0.0795,65294.0,65293.0,0.49339]
[1721207333846,0.0647,65298.0,65295.0,0.153149]
[1721207333847,0.145,65298.0,65295.0,0.153149]
[1721207334004,0.00255742,65297.0,65296.0,0.023]
[1721207334406,0.00255742,65297.0,65296.0,0.176148]
[1721207334620,0.00255742,65297.0,65296.0,0.788742]
[1721207334937,0.145,65298.0,65297.0,0.153146]
[1721207335095,0.145,65298.0,65297.0,0.176146]
[1721207335300,0.1475705,65298.0,65297.0,0.176146]
[1721207336139,0.0828705,65298.0,65297.0,0.78873]
[1721207336533,0.0803,65298.0,65297.0,0.78873]
[1721207336766,0.0803,65298.0,65297.0,0.79873]
[1721207337177,0.0603,65302.0,65301.0,0.459411]
[1721207337382,0.0603,65302.0,65301.0,0.482411]
[1721207337555,0.00259093,65302.0,65301.0,0.482411]
[1721207337896,0.00259093,65302.0,65301.0,0.023]
[1721207338199,0.153141,65299.0,65298.0,0.023]
[1721207338435,0.598524,65299.0,65298.0,0.023]
[1721207338642,0.153145,65298.0,65293.0,0.154079]
[1721207338867,0.00257145,65297.0,65294.0,0.176153]
[1721207339043,0.00257145,65297.0,65295.0,0.023]
[1721207339275,0.292242,65299.0,65295.0,0.023]
[1721207339459,0.00256634,65296.0,65294.0,0.023]
[1721207339662,0.293242,65299.0,65294.0,0.023]
[1721207339972,0.293242,65299.0,65294.0,0.482459]
[1721207339973,0.00256324,65295.0,65294.0,0.482459]
[1721207340152,0.1391,65299.0,65294.0,0.329306]
[1721207340356,0.00256122,65295.0,65294.0,0.482459]
[1721207340580,0.292242,65299.0,65294.0,0.176153]
[1721207340917,0.0025705,65298.0,65294.0,0.176153]
[1721207341363,0.0025705,65298.0,65295.0,0.005]
[1721207341720,0.0025705,65298.0,65296.0,0.023]
[1721207342100,0.0025705,65298.0,65294.0,0.153153]
[1721207342101,0.0025705,65298.0,65295.0,0.023]
[1721207342484,0.0025705,65298.0,65295.0,0.028]
[1721207342680,0.1557145,65298.0,65295.0,0.028]
[1721207342946,0.1557145,65298.0,65295.0,0.023]
[1721207343070,0.0025705,65298.0,65296.0,0.008]
[1721207343433,0.0025705,65298.0,65297.0,0.78873]
[1721207343665,0.0025705,65298.0,65297.0,1.095022]
[1721207343814,0.4798,65307.0,65306.0,0.153125]
[1721207344029,0.4798,65307.0,65306.0,0.023]
[1721207344030,0.48239039,65307.0,65306.0,0.023]
[1721207344552,0.48239039,65307.0,65305.0,0.023]
[1721207345307,0.48239039,65307.0,65306.0,0.459375]
[1721207345507,0.48239039,65307.0,65306.0,0.482375]
[1721207345734,0.48439039,65307.0,65306.0,0.788625]
[1721207346073,0.00459039,65307.0,65306.0,0.788625]
[1721207346404,0.002,65307.0,65306.0,0.788625]
[1721207346869,0.0794,65309.0,65308.0,0.459361]
[1721207347068,0.08232755,65309.0,65308.0,0.788602]
[1721207347300,0.00292755,65309.0,65308.0,0.788602]
[1721207347429,0.00084,65310.0,65309.0,0.76559]
[1721207347661,0.00084,65310.0,65309.0,0.78859]
[1721207348851,0.00084,65310.0,65309.0,0.79759]
[1721207349267,0.00084,65310.0,65309.0,0.80559]
[1721207349915,0.00084,65310.0,65309.0,1.111826]
[1721207350905,0.00084,65310.0,65309.0,1.57244374]
[1721207352307,0.00084,65310.0,65309.0,1.69013972]
[1721207352690,0.00084,65310.0,65309.0,1.90113972]
[1721207352905,0.00084,65310.0,65309.0,1.97813972]
[1721207353301,0.00084,65310.0,65309.0,1.97013972]
[1721207353433,0.00084,65310.0,65309.0,1.92013972]
[1721207354434,0.00084,65310.0,65309.0,1.91113972]
[1721207354787,0.00084,65310.0,65309.0,1.80744374]
[1721207354998,0.00084,65310.0,65309.0,1.97848199]
[1721207355465,0.00084,65310.0,65309.0,1.94248199]
[1721207356030,0.00084,65310.0,65309.0,1.86548199]
[1721207356204,0.00084,65310.0,65309.0,1.55924599]
[1721207356668,0.00084,65310.0,65309.0,1.86548199]
[1721207357143,0.00084,65310.0,65309.0,1.55924599]
[1721207357634,0.00084,65310.0,65309.0,1.43820774]
[1721207357862,0.00084,65310.0,65309.0,1.56029747]
[1721207358096,0.00084,65310.0,65309.0,1.43820774]
[1721207359970,0.00084,65310.0,65309.0,1.91624864]
[1721207360205,0.00084,65310.0,65309.0,1.99454864]
[1721207361166,0.00084,65310.0,65309.0,1.87274374]
[1721207361394,0.00084,65310.0,65309.0,1.99424522]
[1721207363114,0.00836,65316.0,65315.0,1.492136]
[1721207363311,0.00836,65316.0,65315.0,2.11471922]
[1721207364166,0.00836,65316.0,65315.0,2.19541922]
[1721207364386,0.00836,65316.0,65315.0,2.07391774]
[1721207364565,0.00836,65316.0,65315.0,2.19454075]
[1721207365104,0.00836,65316.0,65315.0,2.20354075]
[1721207365679,0.00836,65316.0,65315.0,2.21154075]
[1721207367670,0.00836,65316.0,65315.0,2.21135963]
[1721207367874,0.00836,65316.0,65315.0,2.51756763]
[1721207368654,0.00836,65316.0,65315.0,2.50856763]
[1721207368830,0.00836,65316.0,65315.0,2.50056763]
[1721207369035,0.00836,65316.0,65315.0,2.52856763]
[1721207369232,0.00836,65316.0,65315.0,2.51456763]
[1721207369635,0.00836,65316.0,65315.0,2.52856763]
[1721207370846,0.00836,65316.0,65315.0,2.52768055]
[1721207371078,0.00836,65316.0,65315.0,2.51367679]
[1721207371328,0.00836,65316.0,65315.0,3.03388479]
[1721207371592,1e-06,65316.0,65315.0,3.01988479]
[1721207371805,0.00835,65318.0,65317.0,1.878189]
[1721207372016,0.00835,65318.0,65317.0,2.58131979]
[1721207372590,0.00835,65318.0,65317.0,2.62755433]
[1721207373001,1e-06,65318.0,65317.0,2.67302899]
[1721207373207,0.00835,65333.0,65332.0,1.441676]
[1721207373410,0.00835,65333.0,65332.0,1.83860879]
[1721207373606,0.00835,65333.0,65332.0,1.88484333]
[1721207373841,0.00835,65333.0,65332.0,1.88489844]
[1721207373954,0.00835,65333.0,65332.0,1.8386639]
[1721207374640,0.00835,65333.0,65332.0,2.1947919]
[1721207374867,0.08485,65333.0,65332.0,1.85940652]
[1721207375208,0.08485,65333.0,65332.0,1.7885639]
[1721207375602,0.00835,65333.0,65332.0,2.1586919]
[1721207375816,0.00835,65333.0,65332.0,2.5064919]
[1721207376160,0.00835,65333.0,65332.0,2.55272644]
[1721207376367,0.00835,65333.0,65332.0,2.39133452]
[1721207376573,0.00835,65333.0,65332.0,1.9185639]
[1721207377161,0.00835,65333.0,65332.0,1.90438278]
[1721207377359,0.00835,65333.0,65332.0,1.83461732]
[1721207377567,0.00835,65333.0,65332.0,1.84099086]
[1721207377764,0.00835,65333.0,65332.0,1.78838278]
[1721207378178,0.00835,65333.0,65332.0,1.80238278]
[1721207380288,0.00835,65333.0,65332.0,1.8026991]
[1721207382068,1e-08,65333.0,65332.0,1.9153991]
[1721207382655,1e-08,65333.0,65332.0,2.2215271]
[1721207383975,1e-08,65333.0,65332.0,2.26776164]
[1721207384808,1e-08,65333.0,65332.0,2.30724353]
[1721207385285,1e-08,65333.0,65332.0,2.31317935]
[1721207385513,1e-08,65333.0,65332.0,2.35266124]
[1721207385705,1e-08,65333.0,65332.0,2.30724353]
[1721207386621,1e-08,65333.0,65332.0,2.30700412]
[1721207386834,1e-08,65333.0,65332.0,2.26751933]
[1721207387463,1e-08,65333.0,65332.0,2.31295037]
[1721207388000,1e-08,65333.0,65332.0,1.89412237]
[1721207388203,1e-08,65333.0,65332.0,1.68295774]
[1721207388447,1e-08,65333.0,65332.0,1.82945686]
[1721207388649,1e-08,65333.0,65332.0,1.78322232]
[1721207388650,0.07910001,65333.0,65332.0,1.78322232]
[1721207389893,0.07910001,65333.0,65332.0,1.68295774]
[1721207390086,0.07910001,65333.0,65332.0,1.80633941]
[1721207390646,1e-08,65333.0,65332.0,1.80633941]
[1721207391674,1e-08,65333.0,65332.0,1.85633941]
[1721207391896,1e-08,65333.0,65332.0,1.80633941]
[1721207392884,1e-08,65333.0,65332.0,1.85633941]
[1721207393112,1e-08,65333.0,65332.0,1.73295774]
[1721207393322,1e-08,65333.0,65332.0,1.90184629]
[1721207393487,1e-08,65333.0,65332.0,1.85634863]
[1721207393692,1e-08,65333.0,65332.0,1.90184629]
[1721207395295,1e-08,65333.0,65332.0,1.85634863]
[1721207396461,1e-08,65333.0,65332.0,1.85623575]
[1721207396599,1e-08,65333.0,65332.0,2.26387365]
[1721207396795,1e-08,65333.0,65332.0,1.92452831]
[1721207397242,1e-08,65333.0,65332.0,2.23065631]
[1721207397848,0.00836,65334.0,65333.0,1.427558]
[1721207398110,0.00836,65334.0,65333.0,1.89652988]
[1721207398545,0.00836,65334.0,65333.0,2.20265388]
[1721207398745,0.00836,65334.0,65333.0,2.5419951]
[1721207399345,0.00836,65334.0,65333.0,2.21665388]
[1721207399549,0.00836,65334.0,65333.0,2.14834175]
[1721207399746,0.00836,65334.0,65333.0,2.65414511]
[1721207400145,0.00836,65334.0,65333.0,2.74524256]
[1721207400911,0.00836,65334.0,65333.0,2.79282572]
[1721207401083,0.00836,65334.0,65333.0,2.74524256]
[1721207401437,0.00836,65334.0,65333.0,2.82244256]
[1721207401786,0.00836,65334.0,65333.0,2.87002572]
[1721207401988,0.00836,65334.0,65333.0,2.1638469]
[1721207402201,0.00836,65334.0,65333.0,2.83333908]
[1721207402400,0.00836,65334.0,65333.0,2.74226125]
[1721207403301,0.00836,65334.0,65333.0,2.70118198]
[1721207404494,0.00836,65334.0,65333.0,2.65359882]
[1721207405428,0.00836,65334.0,65333.0,2.65389543]
[1721207405993,0.00836,65334.0,65333.0,2.74502075]
[1721207406277,0.00836,65334.0,65333.0,2.74503886]
[1721207406459,0.00836,65334.0,65333.0,2.65389543]
[1721207407232,0.00836,65334.0,65333.0,2.72225167]
[1721207407434,0.00836,65334.0,65333.0,2.65389543]
[1721207408338,0.00836,65334.0,65333.0,3.02521943]
[1721207408339,1e-06,65334.0,65333.0,3.02521943]
[1721207408551,1e-06,65334.0,65333.0,2.99132532]
[1721207408751,0.00836,65347.0,65345.0,1.377301]
[1721207408952,0.00836,65347.0,65345.0,1.75856729]
[1721207409121,0.00836,65347.0,65346.0,0.765157]
[1721207409449,0.00836,65347.0,65346.0,1.80613245]
[1721207410086,0.00836,65347.0,65346.0,1.80854929]
[1721207410295,0.00836,65347.0,65346.0,2.16219545]
[1721207410436,0.00836,65347.0,65346.0,2.11219545]
[1721207411209,0.00836,65347.0,65346.0,2.13519545]
[1721207411538,0.00836,65347.0,65346.0,2.18519545]
[1721207411742,0.00836,65347.0,65346.0,2.18536805]
[1721207412349,0.00836,65347.0,65346.0,2.19536805]
[1721207412715,0.00836,65347.0,65346.0,2.14778489]
[1721207412989,0.00836,65347.0,65346.0,2.09778489]
[1721207414221,0.00836,65347.0,65346.0,1.79172189]
[1721207416025,0.00836,65347.0,65346.0,1.78172189]
[1721207416230,0.00836,65347.0,65346.0,1.83772189]
[1721207416554,0.00836,65347.0,65346.0,1.79372189]
[1721207417323,0.00836,65347.0,65346.0,1.83322723]
[1721207417599,0.00836,65347.0,65346.0,1.78172189]
[1721207417803,0.00836,65347.0,65346.0,1.82722723]
[1721207418209,0.00836,65347.0,65346.0,1.65466474]
[1721207418382,0.00836,65347.0,65346.0,1.7817234]
[1721207418790,0.00836,65347.0,65346.0,1.8097234]
[1721207418991,0.00836,65347.0,65346.0,1.8597234]
[1721207421673,0.00836,65347.0,65346.0,1.90533032]
[1721207422614,0.00836,65347.0,65346.0,1.8597234]
[1721207424891,0.00836,65347.0,65346.0,2.27710526]
[1721207425485,0.00836,65347.0,65346.0,2.23148721]
[1721207427954,0.00836,65347.0,65346.0,2.2314815]
[1721207428363,0.00836,65347.0,65346.0,2.88981895]
[1721207428578,0.00836,65347.0,65346.0,3.19588195]
[1721207428778,1e-08,65347.0,65346.0,3.19588195]
[1721207428983,1e-08,65347.0,65346.0,3.22661195]
[1721207429417,1e-08,65347.0,65346.0,3.92661195]
[1721207429859,0.04990382,65359.0,65358.0,1.733033]
[1721207430056,0.04990382,65359.0,65358.0,3.04664338]
[1721207430272,0.0764,65366.0,65365.0,1.120909]
[1721207430616,0.08001268,65366.0,65365.0,1.8083185]
[1721207430929,0.0145914,65369.0,65368.0,1.42682]
[1721207431135,0.0145914,65369.0,65368.0,1.80821702]
[1721207431967,0.0145914,65369.0,65368.0,1.83121702]
[1721207432745,0.0145914,65369.0,65368.0,1.84521702]
[1721207433118,0.0145914,65369.0,65368.0,1.79521702]
[1721207433466,0.1579914,65369.0,65368.0,0.30799528]
[1721207433700,0.1579914,65369.0,65368.0,0.028]
[1721207433701,0.32786354,65369.0,65368.0,0.028]
[1721207433856,0.32786354,65369.0,65346.0,1.02192829]
[1721207433857,0.0629,65358.0,65346.0,0.2]
[1721207434220,0.142,65358.0,65357.0,0.459016]
[1721207434426,0.142,65358.0,65357.0,0.765027]
[1721207434640,0.142,65358.0,65357.0,1.071038]
[1721207435268,0.142,65358.0,65357.0,1.22541974]
[1721207435642,0.142,65358.0,65357.0,1.23441974]
[1721207435845,0.142,65358.0,65357.0,1.25741974]
[1721207436642,0.143,65358.0,65357.0,1.26441974]
[1721207438658,0.143,65358.0,65357.0,2.02118084]
[1721207438659,0.0801,65358.0,65357.0,2.02118084]
[1721207438867,0.0801,65358.0,65357.0,2.07118084]
[1721207438868,0.001,65358.0,65357.0,2.07118084]
[1721207439088,0.001,65358.0,65357.0,2.37719184]
[1721207439624,0.001,65358.0,65357.0,2.42275302]
[1721207439831,0.0145914,65369.0,65368.0,1.07086]
[1721207440038,0.0145914,65369.0,65368.0,1.47529184]
[1721207440369,0.0145914,65369.0,65368.0,1.78125184]
[1721207440572,0.0145914,65369.0,65368.0,1.65420174]
[1721207440775,0.0145914,65369.0,65368.0,1.78122509]
[1721207442026,0.0145914,65369.0,65368.0,1.83122509]
[1721207442270,0.0155914,65369.0,65368.0,1.84522509]
[1721207442467,0.0155914,65369.0,65368.0,1.79522509]
[1721207442878,0.0165914,65369.0,65368.0,1.80922509]
[1721207443625,0.0165914,65369.0,65368.0,1.85922509]
[1721207443848,0.0165914,65369.0,65368.0,1.80921541]
[1721207444430,0.0165914,65369.0,65368.0,1.85921541]
[1721207445352,0.0165914,65369.0,65368.0,1.80921541]
[1721207445488,0.0778914,65369.0,65368.0,1.80921541]
[1721207445696,0.1555914,65369.0,65368.0,1.80921541]
[1721207446888,0.0942914,65369.0,65368.0,1.80921541]
[1721207447091,0.0165914,65369.0,65368.0,1.80922048]
[1721207448490,0.0165914,65369.0,65368.0,1.68220174]
[1721207448710,0.0165914,65369.0,65368.0,1.80922047]
[1721207448892,0.0165914,65369.0,65368.0,1.85922047]
[1721207449195,0.0165914,65369.0,65368.0,1.92032047]
[1721207450627,0.0165914,65369.0,65368.0,1.87032047]
[1721207450911,0.0165914,65369.0,65368.0,1.80922047]
[1721207452295,0.0165914,65369.0,65368.0,1.93522047]
[1721207453452,0.0165914,65369.0,65368.0,1.80922047]
[1721207454089,0.0165914,65369.0,65368.0,1.85922047]
[1721207454679,0.0165914,65369.0,65368.0,1.80922047]
[1721207456014,0.0941914,65369.0,65368.0,1.80922047]
[1721207456348,0.1568914,65369.0,65368.0,1.80922047]
[1721207456873,0.1568914,65369.0,65368.0,1.80922476]
[1721207457044,0.1568914,65369.0,65368.0,1.79522476]
[1721207457246,0.1558914,65369.0,65368.0,1.79522476]
[1721207457660,0.1558914,65369.0,65368.0,1.80822476]
[1721207457870,0.1568914,65369.0,65368.0,1.80822476]
[1721207458040,0.0155914,65369.0,65368.0,1.79422476]
[1721207458239,0.0155914,65369.0,65368.0,1.80822476]
[1721207458442,0.0165914,65369.0,65368.0,1.80822476]
[1721207460055,0.0165914,65369.0,65368.0,1.80822045]
[1721207461030,0.0780914,65369.0,65368.0,1.80822045]
[1721207461678,0.0165914,65369.0,65368.0,1.80822045]
[1721207462499,0.0165914,65369.0,65368.0,1.85822045]
[1721207462721,0.0165914,65369.0,65368.0,2.22758045]
[1721207463284,0.0165914,65369.0,65368.0,1.80822045]
[1721207463528,0.0165914,65369.0,65368.0,1.85822045]
[1721207465513,0.0165914,65369.0,65368.0,1.73120174]
[1721207465716,0.0165914,65369.0,65368.0,1.85821169]
[1721207466673,0.0165914,65369.0,65368.0,2.16417169]
[1721207467691,0.00836,65372.0,65371.0,1.857487]
[1721207467896,0.00836,65372.0,65371.0,2.53385252]
[1721207468097,0.00836,65372.0,65371.0,2.95950916]
[1721207468305,0.00836,65372.0,65371.0,2.89126482]
[1721207468528,0.00836,65372.0,65371.0,3.57140354]
[1721207468722,0.00836,65372.0,65371.0,3.502679]
[1721207468925,0.0582176,65382.0,65381.0,0.402949]
[1721207469164,0.0582176,65382.0,65381.0,1.03102484]
[1721207469360,0.00835,65382.0,65381.0,2.25462084]
[1721207469564,0.00835,65382.0,65381.0,3.15642827]
[1721207469765,0.04911581,65395.0,65394.0,1.120433]
[1721207470067,0.04911581,65395.0,65394.0,1.83064684]
[1721207470280,0.00835,65399.0,65398.0,0.202909]
[1721207470477,0.0068202,65399.0,65398.0,1.14592284]
[1721207470676,0.0881202,65399.0,65398.0,1.78056084]
[1721207471508,0.0068202,65399.0,65398.0,1.78056084]
[1721207471830,0.0068202,65399.0,65398.0,1.80651452]
[1721207472232,0.0068202,65399.0,65398.0,1.79251452]
[1721207473062,0.0068202,65399.0,65398.0,2.31946352]
[1721207473292,0.0068202,65399.0,65398.0,2.28873352]
[1721207473663,0.0068202,65399.0,65398.0,2.30273352]
[1721207473883,2e-07,65399.0,65398.0,2.60855252]
[1721207474068,2e-07,65399.0,65398.0,2.50305252]
[1721207474246,2e-07,65399.0,65398.0,2.53378252]
[1721207474464,2e-07,65399.0,65398.0,2.56178252]
[1721207474684,2e-07,65399.0,65398.0,2.54778252]
[1721207474976,2e-07,65399.0,65398.0,2.34593474]
[1721207475158,2e-07,65399.0,65398.0,2.13106054]
[1721207475363,2e-07,65399.0,65398.0,1.82524154]
[1721207475764,2e-07,65399.0,65398.0,1.83924154]
[1721207475969,2e-07,65399.0,65398.0,2.33803054]
[1721207476198,2e-07,65399.0,65398.0,2.36876054]
[1721207477242,2e-07,65399.0,65398.0,2.37403054]
[1721207477471,2e-07,65399.0,65398.0,2.51423054]
[1721207477708,2e-07,65399.0,65398.0,2.50023054]
[1721207477851,2e-07,65399.0,65398.0,2.51423054]
[1721207478063,2e-07,65399.0,65398.0,2.52823054]
[1721207478263,2e-07,65399.0,65398.0,2.41790574]
[1721207478468,2e-07,65399.0,65398.0,2.53085092]
[1721207478792,2e-07,65399.0,65398.0,2.55885092]
[1721207479202,2e-07,65399.0,65398.0,2.57285092]
[1721207480403,2e-07,65399.0,65398.0,2.52285092]
[1721207480752,2e-07,65399.0,65398.0,2.03221192]
[1721207481066,2e-07,65399.0,65398.0,2.04621192]
[1721207481351,2e-07,65399.0,65398.0,2.43265092]
[1721207481582,2e-07,65399.0,65398.0,2.40465828]
[1721207481732,2e-07,65399.0,65398.0,2.39065828]
[1721207481910,2e-07,65399.0,65398.0,2.40465828]
[1721207482336,2e-07,65399.0,65398.0,2.41865828]
[1721207482607,2e-07,65399.0,65398.0,2.40465828]
[1721207482827,2e-07,65399.0,65398.0,2.39065828]
[1721207483752,2e-07,65399.0,65398.0,2.53265828]
[1721207484165,2e-07,65399.0,65398.0,2.56065828]
[1721207484608,2e-07,65399.0,65398.0,2.54665092]
[1721207484808,0.076,65417.0,65398.0,2.54665092]
[1721207484809,0.076,65417.0,65411.0,0.658637]
[1721207485012,0.05303755,65412.0,65411.0,1.13671874]
[1721207485273,0.076,65417.0,65416.0,0.458602]
[1721207485479,0.076,65417.0,65416.0,1.32445374]
[1721207485707,0.07965598,65417.0,65416.0,1.32445374]
[1721207485929,0.076,65417.0,65416.0,1.65318874]
[1721207486472,0.076,65417.0,65416.0,1.33745374]
[1721207486690,0.1387,65417.0,65416.0,1.33745374]
[1721207487640,0.1387,65417.0,65416.0,0.900337]
[1721207489074,0.1387,65417.0,65416.0,1.36045374]
[1721207492865,0.1387,65417.0,65416.0,1.66618874]
[1721207493378,0.076,65417.0,65416.0,1.66618874]
[1721207494593,0.076,65417.0,65416.0,1.79312336]
[1721207494846,0.0792,65420.0,65419.0,1.070023]
[1721207495062,0.0792,65420.0,65419.0,1.24740474]
[1721207495286,0.0792,65420.0,65419.0,1.55312574]
[1721207496498,0.0792,65420.0,65419.0,1.6800588]
[1721207497582,0.0001,65420.0,65419.0,1.8325588]
[1721207497838,0.00836,65424.0,65423.0,2.057481]
[1721207498038,0.04970593,65433.0,65432.0,1.01415]
[1721207498147,0.04970593,65433.0,65432.0,3.6926848]
[1721207498352,0.00836,65438.0,65433.0,1.375452]
[1721207498554,1e-06,65438.0,65437.0,0.844712]
[1721207498753,1e-06,65438.0,65437.0,2.16974149]
[1721207498960,1e-06,65438.0,65437.0,2.45171114]
[1721207499204,1e-06,65438.0,65437.0,2.91172988]
[1721207499735,1e-06,65438.0,65437.0,2.55609288]
[1721207499939,0.07994576,65459.0,65457.0,0.458316]
[1721207499940,0.14467097,65458.0,65457.0,0.458316]
[1721207500260,0.14467097,65458.0,65456.0,0.305548]
[1721207500261,0.1468,65457.0,65456.0,0.305548]
[1721207500648,0.1468,65457.0,65456.0,0.481322]
[1721207500857,0.149915,65457.0,65456.0,0.481322]
[1721207501248,0.149915,65457.0,65456.0,1.1011203]
[1721207501455,0.0809,65457.0,65456.0,1.56405004]
[1721207501614,0.0809,65457.0,65456.0,1.48237339]
[1721207501935,0.0809,65457.0,65456.0,1.78792139]
[1721207502171,0.0809,65457.0,65456.0,1.79092139]
[1721207502437,0.0809,65457.0,65456.0,1.49337339]
[1721207502663,0.0809,65457.0,65456.0,1.50237339]
[1721207502940,0.0809,65457.0,65456.0,1.49367109]
[1721207503195,0.00836,65465.0,65456.0,1.49367109]
[1721207503196,0.00836,65465.0,65464.0,1.374799]
[1721207503458,0.00836,65465.0,65464.0,1.92527285]
[1721207503696,0.00836,65465.0,65464.0,2.45443349]
[1721207503935,0.00836,65465.0,65464.0,2.50443349]
[1721207504407,0.00836,65465.0,65464.0,2.40283273]
[1721207504653,0.00836,65465.0,65464.0,2.41683273]
[1721207504883,0.00836,65465.0,65464.0,2.43083273]
[1721207505402,0.00836,65465.0,65464.0,2.00270173]
[1721207505646,0.00836,65465.0,65464.0,2.03070173]
[1721207506397,0.00836,65465.0,65464.0,2.01670173]
[1721207506893,0.0753,65476.0,65475.0,1.06911]
[1721207507126,0.0753,65476.0,65475.0,0.45819]
[1721207507355,0.07830696,65476.0,65475.0,0.45819]
[1721207507576,0.0753,65476.0,65475.0,0.76365]
[1721207508329,0.0753,65476.0,65475.0,1.10511]
[1721207508573,0.0753,65476.0,65475.0,1.11911]
[1721207509036,0.0753,65476.0,65475.0,0.81365]
[1721207510122,0.0753,65476.0,65475.0,0.82235251]
[1721207510326,0.0753,65476.0,65475.0,0.80835251]